Cogmind - Beta 13 @@@ ROGUE MODE // 2024.06.27 @ 14:20:49 Player: Lunace Result: Destroyed by D-53 Grenadier with Mini Grenade Launcher Performance ------------- Evolutions (0) 0 Regions Visited (4) 800 Robots Destroyed (18) 90 Value Destroyed (404) 404 Prototype IDs (2) 40 Alien Tech Used (0) 0 Bonus (40) 40 TOTAL SCORE: 1374 Bonus ------- Follower Combat Kills 60 Friendly Fire -20 Cogmind --------- Core Integrity 0/250 Matter 296/300 Energy 100/100 System Corruption 2% Temperature Cool (0) Movement Core (50) Location -9/Mines Parts ------- > --- POWER (1) -------- (None) > --- PROPULSION (2) --- (None) > --- UTILITY (2) ------ (None) > --- WEAPON (2) ------- (None) > --- INVENTORY (5) ---- Light Ion Engine Beam Rifle Beam Rifle Grenade Launcher Plasma Cutter Peak State ------------ > --- POWER ------------ Ion Engine > --- PROPULSION ------- Light Treads Light Treads > --- UTILITY ---------- Small Storage Unit Machine Analyzer > --- WEAPON ----------- Beam Rifle Heavy Assault Rifle > --- INVENTORY -------- Light Ion Engine Beam Rifle Beam Rifle Heavy Assault Rifle Heavy Assault Rifle Heavy Assault Rifle [Rating: 12] Favorites ----------- Power Ion Engine Engine Ion Engine Propulsion Light Treads Treads Light Treads Utility Light Armor Plating Storage Large Storage Unit Processor Machine Analyzer Protection Light Armor Plating Weapon Heavy Assault Rifle Energy Gun Beam Rifle Ballistic Gun Heavy Assault Rifle Ballistic Cannon Assault Cannon Launcher Grenade Launcher Build | -11 -10 -10 -10 -9 ------- Run | Yrd Mat Min Exi Min Slots Evolved . | . . . . . Power . | . . . . . Propulsion . | . . . . . Utility . | . . . . . Weapon . | . . . . . Parts Attached 16 | 6 4 2 1 3 Power 1 | 1 . . . . Engine 1 | 1 . . . . Core . | . . . . . Reactor . | . . . . . Propulsion 2 | 2 . . . . Treads 2 | 2 . . . . Leg . | . . . . . Wheel . | . . . . . Hover . | . . . . . Flight . | . . . . . Utility 5 | 1 2 1 1 . Device . | . . . . . Storage 3 | 1 . 1 1 . Processor 1 | . 1 . . . Hackware . | . . . . . Protection 1 | . 1 . . . Artifact . | . . . . . Weapon 8 | 2 2 1 . 3 Energy Gun 2 | 1 1 . . . Energy Cannon . | . . . . . Ballistic Gun 3 | 1 1 . . 1 Ballistic Cannon 2 | . . 1 . 1 Launcher 1 | . . . . 1 Special Weapon . | . . . . . Impact Weapon . | . . . . . Slashing Weapon . | . . . . . Piercing Weapon . | . . . . . Special Melee Weapon . | . . . . . Unidentified Prototypes . | . . . . . Parts Lost 5 | . . . . 5 Power 1 | . . . . 1 Propulsion 2 | . . . . 2 Utility 1 | . . . . 1 Weapon 1 | . . . . 1 Highest Loss Streak 5 | . . . . 5 To Critical Strikes . | . . . . . Average Slot Usage (%) 93 | . 99 99 71 82 Engine 14 | . 14 14 14 14 Treads 28 | . 28 28 28 28 Storage 14 | . 14 14 14 14 Processor 2 | . 8 . . . Protection 11 | . 4 14 14 13 Energy Gun 9 | . 13 12 . . Ballistic Gun 11 | . 14 14 . 5 Naked Turns 3 | . . . . 3 Heaviest Build 36 | 14 19 36 28 36 Greatest Support 40 | 40 40 40 40 40 Greatest Overweight (x) 1 | 1 . . . . Average Overweight (x) . | . . . . . Largest Inventory Capacity 15 | 8 8 15 15 15 Average Capacity 12 | 7 8 14 15 14 Most Carried 13 | 1 8 11 13 12 Average Carried 8 | . 6 8 11 11 Final Capacity 15 | 8 8 15 15 5 Final Carried 11 | 1 8 10 11 5 Class Distribution -------------------- 100% | Mutant Dominant Class ---------------- Mutant | -10/Materials Mutant | -10/Mines Mutant | -10/Exiles Mutant | -9/Mines Resources | -11 -10 -10 -10 -9 ----------- Run | Yrd Mat Min Exi Min Matter Collected 696 | 187 160 250 34 65 Remotely . | . . . . . Salvage Created 566 | . 219 237 . 110 Parts 31 | . 15 9 . 7 Haulers Intercepted . | . . . . . Recyclers Shooed 1 | . . . . 1 Parts Field Recycled . | . . . . . Retrieved Matter . | . . . . . Parts Self-Destructed . | . . . . . Prevented . | . . . . . Kills | -11 -10 -10 -10 -9 ------- Run | Yrd Mat Min Exi Min Combat Hostiles Destroyed 14 | . 6 5 . 3 Guns 12 | . 6 5 . 1 AOE 2 | . . . . 2 Classes Destroyed 6 | . 5 1 . . Worker 1 | . 1 . . . Recycler 1 | . 1 . . . Mechanic 1 | . 1 . . . Watcher 1 | . 1 . . . Swarmer 6 | . 6 . . . Grunt 8 | . . 5 . 3 Best Kill Streak 6 | . 6 3 . 3 Combat Bots Only 4 | . 4 3 . 3 Max Kills in Single Turn 2 | . 2 2 . 2 Gunslinging 1 | . . 1 . . Exploded 2 | . . . . 2 Melee . | . . . . . Uniques/NPCs Destroyed . | . . . . . Combat | -11 -10 -10 -10 -9 -------- Run | Yrd Mat Min Exi Min Hostile Shots Fired 64 | . 25 9 . 30 Missed 13 | . 3 2 . 8 Damage Taken 915 | . 182 128 . 605 Core 255 | . 44 15 . 196 Absorbed by Shields . | . . . . . Core Remaining (%) 100 | 100 . . . . Volleys Fired 39 | . 19 14 . 6 Largest 2 | . 2 2 . 2 Hottest 79 | . 79 79 . 53 Shots Fired 78 | . 38 30 . 10 Gun 74 | . 38 30 . 6 Cannon . | . . . . . Launcher 4 | . . . . 4 Special . | . . . . . Kinetic 40 | . 19 15 . 6 Thermal 34 | . 19 15 . . Explosive 4 | . . . . 4 Electromagnetic . | . . . . . Robot Hit Streak 10 | . 4 10 . 3 Robot Miss Streak 5 | . 5 2 . 1 Penetration Max . | . . . . . Secondary Targets 4 | . 2 2 . . Max Gunslinging Chain 1 | . 1 1 . . Shots Hit Robots 48 | . 19 23 . 6 Core Hits 26 | . 11 10 . 5 Critical Kills . | . . . . . Critical Parts Destroyed . | . . . . . Critical Strikes . | . . . . . Melee Attacks . | . . . . . Impact . | . . . . . Slashing . | . . . . . Piercing . | . . . . . Sneak Attacks . | . . . . . Combat Hostiles . | . . . . . Follow-up Attacks . | . . . . . Damage Inflicted 1006 | . 307 367 . 332 Guns 751 | . 307 365 . 79 Cannons . | . . . . . Explosions 253 | . . . . 253 Melee . | . . . . . Ramming 2 | . . 2 . . Kinetic 404 | . 150 175 . 79 Thermal 347 | . 157 190 . . Explosive 253 | . . . . 253 Electromagnetic . | . . . . . Impact . | . . . . . Slashing . | . . . . . Piercing . | . . . . . Highest Corruption 2 | . 2 2 2 2 Average Corruption 2 | . 2 2 2 2 Corruption Purged . | . . . . . Corruption Blocked . | . . . . . Effects 26 | . 4 16 5 1 Message Errors 5 | . 1 4 . . Matter Fused 8 | . 1 4 2 1 Heat Flow Errors 3 | . . 1 2 . Energy Discharges 6 | . 2 3 1 . Data Loss (minor) 1 | . . 1 . . Data Loss (major) 1 | . . 1 . . Misfires 2 | . . 2 . . Overload Shots . | . . . . . Overflow Damage . | . . . . . Projectiles . | . . . . . Explosions . | . . . . . Melee . | . . . . . Knockbacks . | . . . . . Impact . | . . . . . Kinetic . | . . . . . Secondary . | . . . . . Self-Inflicted Damage 18 | . . . . 18 Shots 1 | . . . . 1 Rammed 1 | . . 1 . . Targets Rammed 1 | . . 1 . . Kicked . | . . . . . Crushed . | . . . . . Highest Temperature 216 | . 216 201 155 33 Average Temperature 73 | . 81 76 71 19 Received Heat Transfer 177 | . . 90 . 87 Siege Activations . | . . . . . Robots Corrupted . | . . . . . Combat Hostiles . | . . . . . Parts Fried . | . . . . . Impact Corruptions . | . . . . . Robots Melted . | . . . . . Combat Hostiles . | . . . . . Parts Melted 1 | . 1 . . . Heat Transferred 888 | . 407 481 . . Parts Sabotaged . | . . . . . Parts Stolen . | . . . . . Parts Stripped . | . . . . . Power Chain Reactions . | . . . . . Alert | -11 -10 -10 -10 -9 ------- Run | Yrd Mat Min Exi Min Peak Influence 193 | . 193 112 . 88 Initial . | . . . . . Average 42 | . 79 29 . 16 Maximum Alert Level . | . . . . . Low Security (%) 100 | 100 100 100 . 100 Level 1 . | . . . . . Level 2 . | . . . . . Level 3 . | . . . . . Level 4 . | . . . . . Level 5 . | . . . . . High Security . | . . . . . Max Security . | . . . . . Squads Dispatched 1 | . . 1 . . Investigation 1 | . . 1 . . Extermination . | . . . . . Reinforcement . | . . . . . Assault . | . . . . . Garrison . | . . . . . Intercept . | . . . . . Searches Triggered . | . . . . . Construction Impeded . | . . . . . Haulers Reinforced . | . . . . . Active Scanning Responses . | . . . . . Cargo Convoy Interrupts . | . . . . . Stealth | -11 -10 -10 -10 -9 --------- Run | Yrd Mat Min Exi Min Distress Signals . | . . . . . Communications Jammed . | . . . . . Distress Signals . | . . . . . Times Spotted 24 | . 9 7 . 8 Peak Tracking Total 5 | . 3 3 . 5 Tactical Retreats . | . . . . . Traps | -11 -10 -10 -10 -9 ------- Run | Yrd Mat Min Exi Min Traps Triggered 1 | . 1 . . . Indirectly . | . . . . . Trap Hack Attempts . | . . . . . Triggered . | . . . . . Disarmed 4 | . 4 . . . Reprogrammed . | . . . . . Reused . | . . . . . Traps Extracted . | . . . . . Installed . | . . . . . Triggered . | . . . . . Machines | -11 -10 -10 -10 -9 ---------- Run | Yrd Mat Min Exi Min Machines Disabled 1 | . 1 . . . Max in Single Turn 1 | . 1 . . . Machines Repaired . | . . . . . Machines Dismantled . | . . . . . Machines Sabotaged . | . . . . . Overloaded Fab Kills . | . . . . . Hacking | -11 -10 -10 -10 -9 --------- Run | Yrd Mat Min Exi Min Machines Accessed 7 | . 5 1 1 . Terminals 4 | . 4 . . . Fabricators . | . . . . . Repair Stations . | . . . . . Recycling Units 1 | . 1 . . . Scanalyzers . | . . . . . Garrison Access . | . . . . . Total Hacks 16 | . 14 1 1 . Successful 12 | . 10 1 1 . Failed 4 | . 4 . . . Catastrophic . | . . . . . Database Lockouts . | . . . . . Manual 9 | . 9 . . . Terminals 12 | . 12 . . . Fabricators . | . . . . . Repair Stations . | . . . . . Recycling Units 2 | . 2 . . . Scanalyzers . | . . . . . Garrison Access . | . . . . . Terminal Hacks 6 | . 4 1 1 . Record 1 | . . . 1 . Prototype ID Bank 2 | . 2 . . . Open Door 1 | . . 1 . . Locate Traps 1 | . 1 . . . Disarm Traps 1 | . 1 . . . Fabricator Hacks . | . . . . . Repair Station Hacks . | . . . . . Recycling Unit Hacks 2 | . 2 . . . Retrieve Components 2 | . 2 . . . Scanalyzer . | . . . . . Garrison Access Hacks . | . . . . . Unauthorized Hacks 4 | . 4 . . . Terminals 4 | . 4 . . . Botnet 4 | . 4 . . . Fabricators . | . . . . . Repair Stations . | . . . . . Recycling Units . | . . . . . Scanalyzers . | . . . . . Garrison Access . | . . . . . Data Cores Recovered . | . . . . . Used . | . . . . . Hacking Detections 4 | . 4 . . . Full Trace Events . | . . . . . Feedback Events . | . . . . . Feedback Blocked . | . . . . . Robot Schematics Acquired . | . . . . . Robots Built . | . . . . . Authchips . | . . . . . Time . | . . . . . Total Robot Build Rating . | . . . . . Part Schematics Acquired . | . . . . . Parts Built . | . . . . . Authchips . | . . . . . Time . | . . . . . Total Part Build Rating . | . . . . . Parts Repaired . | . . . . . Time . | . . . . . Parts Recycled . | . . . . . Recycled Matter . | . . . . . Retrieved Matter . | . . . . . Retrieved Components . | . . . . . Parts Scanalyzed . | . . . . . Part Schematics Acquired . | . . . . . Parts Damaged . | . . . . . Bothacking | -11 -10 -10 -10 -9 ------------ Run | Yrd Mat Min Exi Min Used RIF Installer . | . . . . . Robots Hacked . | . . . . . Non-combat . | . . . . . Combat . | . . . . . Robot Hacks Applied . | . . . . . Relay Couplers Released . | . . . . . Fabnet Peak Effective % . | . . . . . Robots Rewired . | . . . . . Allies Hacked . | . . . . . Hacks Repelled . | . . . . . Allies | -11 -10 -10 -10 -9 -------- Run | Yrd Mat Min Exi Min Total Allies 2 | . . 2 . . Largest Group 2 | . . 2 2 . Highest-Rated Group 42 | . . 42 42 . Highest-Rated Ally 31 | . . 31 31 . Total Orders . | . . . . . Ally Attacks 16 | . . 16 . . Total Damage 252 | . . 252 . . Kills 2 | . . 2 . . Allies Corrupted . | . . . . . Allies Melted . | . . . . . Intel | -11 -10 -10 -10 -9 ------- Run | Yrd Mat Min Exi Min Robot Analysis Total . | . . . . . Derelict Logs Recovered 4 | . . 3 . 1 Drone Launches . | . . . . . Drone Recoveries . | . . . . . Exploration | -11 -10 -10 -10 -9 ------------- Run | Yrd Mat Min Exi Min Turns Passed 1894 | 66 506 895 260 167 Spaces Moved 1041 | 38 262 506 149 86 Core 6 | 5 . . . 1 Treads 1035 | 33 262 506 149 85 Legs . | . . . . . Wheels . | . . . . . Hover . | . . . . . Flight . | . . . . . Fastest Speed 50 | 50 160 160 160 50 Average Speed 159 | 150 160 160 160 158 Slowest Speed 160 | 160 160 160 160 160 Overloaded Moves . | . . . . . Propulsion Burnouts . | . . . . . Robots Hopped . | . . . . . Cave-ins Triggered . | . . . . . Exploration Rate (%) 47 | 4 51 96 50 37 Regions Visited 4 Branch Regions 3 Pre-discovered Areas 4 | . . 2 1 1 Known Exits Taken . | . . . . . Unknown Exits Taken 4 | 1 1 1 1 . Scrap Searched 2 | . . 1 . 1 Spaces Dug . | . . . . . Terrain Destroyed 31 | . . . . 31 Melee . | . . . . . Projectile . | . . . . . AOE 31 | . . . . 31 Terrain Rammed . | . . . . . Walls Destroyed . | . . . . . Machines Disabled . | . . . . . Actions | -11 -10 -10 -10 -9 --------- Run | Yrd Mat Min Exi Min Total 1197 | 44 310 564 172 107 Wait 77 | . 16 36 19 6 Move 1037 | 37 261 505 148 86 Hop . | . . . . . Pick Up 14 | 1 7 3 . 3 Fast Attach 11 | 6 4 1 . . Attach 2 | . . . . 2 Detach 3 | . . . 2 1 Swap 3 | . . 1 1 1 Drop 10 | . 3 3 2 2 Fire 39 | . 19 14 . 6 Melee . | . . . . . Ram . | . . . . . Kick . | . . . . . Crush 1 | . . 1 . . Escape Stasis . | . . . . . Rewire . | . . . . . Trap . | . . . . . Miscellaneous . | . . . . . Route ------- -11/Scrapyard -10/Materials (discovered 2 exits: [*Mat] / *Min) -10/Mines (discovered 3 exits: [*Mat x2] / *Exi) -10/Exiles -9/Mines (discovered 1 exit: [*Mat]) History --------- Turn | Location | Event 2 | -11/Scrapyard | Met Revision 17 9 | -11/Scrapyard | Discovered new exit (range 15) 67 | -11/Scrapyard | Entered Materials 318 | -10/Materials | Build established: Mutant 368 | -10/Materials | Discovered new exit (range 16) 523 | -10/Materials | Discovered new exit (range 6) 573 | -10/Materials | Entered Mines 690 | -10/Mines | Discovered new exit (range 13) 724 | -10/Mines | Learned Materials security intel 1083 | -10/Mines | Learned Materials terminal intel 1358 | -10/Mines | Met a Derelict shopkeep closing up shop 1397 | -10/Mines | Discovered new exit (range 6) 1398 | -10/Mines | Learned location of Storage (-7) 1437 | -10/Mines | Deemed a non-threat by the Exiles lab entrance 1437 | -10/Mines | Discovered new exit (range 5) 1468 | -10/Mines | Entered Exiles 1468 | -10/Exiles | Accompanied by 2 allies 1498 | -10/Exiles | Led the pair of lost Derelicts to a safe place 1509 | -10/Exiles | Met 8R-AWN 1535 | -10/Exiles | Met EX-HEX 1581 | -10/Exiles | Met EX-BIN 1602 | -10/Exiles | Met EX-DEC 1609 | -10/Exiles | Learned location of Zion (-6) 1689 | -10/Exiles | Discovered new exit (range 14) 1728 | -10/Exiles | Entered Mines 1826 | -9/Mines | YI-UF0 nonchalantly dropped a Grenade Launcher on the ground 1868 | -9/Mines | Discovered new exit (range 10) 1879 | -9/Mines | Assembled infested the area 1894 | -9/Mines | Core integrity fell below 50% 1895 | -9/Mines | Core integrity fell below 20% 1895 | -9/Mines | Destroyed by D-53 Grenadier with Mini Grenade Launcher Last Messages --------------- dispatching Demolisher response squad. 01880_ K-01 Serf collects debris. 01880_ R-06 Scavenger collects Aluminum Leg. 01883_ K-01 Serf collects debris. 01883_ R-06 Scavenger collects Aluminum Leg. 01884_ C-30 ARC bursts open, deploying its payload. 01884_ D-53 Grenadier unfolds itself. 01884_ K-01 Serf destroyed. 01884_ R-06 Scavenger destroyed. 01886_ Acquired 65 matter. 01886_ Lgt. Armor Plating destroyed. 01890_ Hvy. Assault Rifle destroyed. 01890_ Ion Engine destroyed. 01890_ Lgt. Treads destroyed. 01892_ Dropped Lrg. Storage Unit. 01894_ The unstable cave ceiling collapses. 01894_ Dropped Hcp. Matter Pod. 01894_ Acquired Grenade Launcher. 01895_ The unstable cave ceiling collapses. Map ----- +----------------------------------------------------+ | ?????????????????????????????????????????????????? | | ?????????????????????????????????????????????????? | | ?????????????????????????????????????????????????? | | ?????????????????????????????????????????????????? | | ?????????????????????????????????????????????????? | | ?????????????????????????????????????????????????? | | ?????????????????????????????????????????????????? | | ??????????????????####???????????????????????????? | | ?????????????????? #???????????????????????????? | | ?????????????????? ???????????????????????????? | | ?????????????????## ####????????????????????????? | | ????????????????## #????????????????????????? | | ????????????????? $ #????????????????????????? | | ?????????????????# #????????????????????????? | | ????????????????## %= ###??????????????????????? | | ???????????????## =[ # ##?????????????????????? | | ??????????????## %%== ####??????????????????? | | ??????????????# =! =%[ ?????????????? | | ???????????????# g#### ?????????????? | | ??????????????## ## #g#????????????????????? | | ??????????????# r #????????????????????? | | #???????######## d ##???????????????????? | | ######### d #???????????????????? | | ##### ][ #####???????????????? | | ###########???# ![ #???????????????? | | #?????????????## [[@ < #???????????????? | | #??????????????# # ! # #???????????????? | | ???????????????# ## ##??#???????????????? | | ???????????????## #### ##???????????????????? | | ????????????????###??##### #????????????????????? | | #####????????????????????? #????????????????????? | | #????????????????????? ????????????????????? | | #????????????????????? ???????????????????? | | ## #????????????????????? ???????????????????? | | # #????????????????????? ??????????????????? | | # #????????????????????? ?????????????????? | | ##???????????????????? ?????????????????? | | ####?????????????????? ?????????????????? | | ##????????????????? ?????????????????? | | #????????????????? ???????????????????? | | #????????????????? ?????????????????????? | | #???????????????????????????????????????? | | ##???????????????????????????????????????? | | ### ##????????????????????????????????????????? | | ??# ##?????????????????????????????????????????? | | ??# #??????????????????????????????????????????? | | ??# ##??????# ???????????????????????????????? | | ??# ###### ?????????????????????????????? | | ??# ?????????????????????????????? | | ?## ?????????????????????????????? | +----------------------------------------------------+ Best States ------------- Heat Dissipation 25 Energy Generation 10 Energy Capacity 250 Matter Stores 300 Matter Capacity 300 Sight Range 16 Terrain Scan Density 10 Armor Coverage 150 Evasion (%) 40 Recoil Reduction 2 Item Schematics ----------------- None Robot Schematics ------------------ None Fabricated ------------ Nothing Alien Tech Used ----------------- None Achievements -------------- None Challenges ------------ None Game ------ Seed CloakPotentialHumpback Manual? 0 Play Time 00:10:03 Cumulative 283.8 hours Start 2024.06.27 @ 14:11:41 End 2024.06.27 @ 14:20:49 Sessions 1 Manual Loads 0 Difficulty Rogue Special Mode None Game No. 274 Rogue 269 Adventurer 5 Explorer 0 Win Type - Total 5 Types 4/0/0/1/0/0/0/0/0 Lore% 67 Gallery% 84 Achievement% 64 Wizard Run 0 Options --------- Layout 2 ASCII 0 Keyboard 0 Movement Arrows Keybinds 0 Fullscreen 1 Font 24/Terminus Map View 50x44 Zoom Use 0% Tactical HUD 1 Map Filters NONE Filters NONE Steam 1 RUN: fd00ea3a-2f42-438c-bffe-08ec0c0f4266